[Event "ISR-ch Open 2018"]
[Site "Ma'alot-Tarshih"]
[Date "2018.12.13"]
[Round "2"]
[White "Kupervaser, Erez"]
[Black "Gruenfeld, Yehuda"]
[Result "1/2-1/2"]
[ECO "B43"]
[WhiteElo "2168"]
[BlackElo "2421"]
[Annotator "RC"]
[PlyCount "47"]
[EventDate "2018.12.12"]
[EventType "swiss"]
[EventCountry "ISR"]
[SourceTitle "playchess.com"]
[Source "ChessBase"]
[SourceQuality "1"]
[TimeControl "40/5400+30:1800+30"]

1. e4 {[%emt 0:00:00]} c5 {[%emt 0:00:00]} 2. Nf3 {[%emt 0:00:00]} e6 {[%emt 0:00:00]} 3. d4 {[%emt 0:00:00]} cxd4 {[%emt 0:00:00]} 4. Nxd4 {[%emt 0:00:00]} a6 {[%emt 0:00:00]} 5. Nc3 {[%emt 0:00:16]} b5 {[%emt 0:01:18]} 6. g3 {[%emt 0:00:22]} Bb7 {[%emt 0:01:09]} 7. Bg2 {[%emt 0:00:05]} Nf6 {[%emt 0:01:26]} 8. O-O {[%emt 0:00:07]} d6 {[%emt 0:06:01]} 9. Re1 {[%emt 0:00:46]} Qc7 {[%emt 0:00:53]} 10. a4 {[%emt 0:00:23]} bxa4 {[%emt 0:06:48]} 11. Nd5 {[%emt 0:04:24]} Nxd5 {[%emt 0:04:03]} 12. exd5 {[%emt 0:00:12]} e5 {[%emt 0:00:04]} 13. f4 {[%emt 0:05:56]} g6 {[%emt 0:02:12]} 14. Ra3 {[%emt 0:32:45]} Bg7 {[%emt 0:01:44]} 15. fxe5 {[%emt 0:02:55]} dxe5 {[%emt 0:01:22]} 16. d6 {[%emt 0:10:22]} Qd7 {[%emt 0:01:19]} 17. Bxb7 {[%emt 0:06:51]} Qxb7 {[%emt 0:00:46]} 18. Nf3 {[%emt 0:00:42]} Nd7 {[%emt 0:01:26]} 19. Rc3 {[%emt 0:04:33]} Rc8 {[%emt 0:04:30]} 20. Qd5 {[%emt 0:01:24]} Qb6+ {[%emt 0:02:48]} 21. Be3 {[%emt 0:00:39]} Qd8 {[%emt 0:00:20]} 22. Bg5 {[%emt 0:01:05]} Qb6+ {[%emt 0:00:09]} 23. Be3 {[%emt 0:00:08]} Qd8 {[%emt 0:01:46]} 24. Bg5 {[%emt 0:28:05]} 1/2-1/2

[Event "ISR-ch Open 2018"]
[Site "Ma'alot-Tarshih"]
[Date "2018.12.14"]
[Round "3"]
[White "Gleizer, Mark"]
[Black "Aharon, Ofir"]
[Result "1/2-1/2"]
[ECO "B06"]
[WhiteElo "2186"]
[BlackElo "2320"]
[Annotator "ChessBase"]
[PlyCount "130"]
[EventDate "2018.12.11"]
[EventType "swiss"]
[EventCountry "ISR"]
[SourceTitle "playchess.com"]
[Source "ChessBase"]
[SourceQuality "1"]
[TimeControl "40/5400+30:1800+30"]

1. d4 {[%emt 0:00:00]} Nf6 {[%emt 0:00:00]} 2. c3 {[%emt 0:00:00]} g6 {[%emt 0:00:00]} 3. Bg5 {[%emt 0:00:00]} Bg7 {[%emt 0:00:02]} 4. Nd2 {[%emt 0:00:17]} O-O {[%emt 0:04:47]} 5. e4 {[%emt 0:02:19]} d6 {[%emt 0:00:20]} 6. Bd3 {[%emt 0:09:37]} c5 {[%emt 0:00:40]} 7. d5 {[%emt 0:06:24]} h6 {[%emt 0:00:53]} 8. Bh4 {[%emt 0:01:09]} e6 {[%emt 0:00:28]} 9. dxe6 {[%emt 0:02:28]} Bxe6 {[%emt 0:00:06]} 10. f4 {[%emt 0:01:45]} Qb6 {[%emt 0:02:15]} 11. b3 {[%emt 0:16:08]} c4 {[%emt 0:06:38]} 12. bxc4 {[%emt 0:07:21]} Ng4 {[%emt 0:08:01]} 13. f5 {[%emt 0:01:54]} Qe3+ {[%emt 0:21:57]} 14. Qe2 {[%emt 0:03:33]} Bxc3 {[%emt 0:00:36]} 15. Rd1 {[%emt 0:02:19]} gxf5 {[%emt 0:10:45]} 16. exf5 {[%emt 0:01:25]} Bd7 {[%emt 0:04:17]} 17. Bf2 {[%emt 0:02:43]} Qxf2+ {[%emt 0:01:35]} 18. Qxf2 {[%emt 0:00:12]} Nxf2 {[%emt 0:00:02]} 19. Kxf2 {[%emt 0:00:10]} Ba4 {[%emt 0:06:01]} 20. Nb3 {[%emt 0:00:36]} Bd4+ {[%emt 0:02:37]} 21. Kf1 {[%emt 0:01:08]} Nc6 {[%emt 0:04:58]} 22. Nf3 {[%emt 0:01:48]} Bf6 {[%emt 0:00:39]} 23. Be4 {[%emt 0:03:03]} Rad8 {[%emt 0:04:26]} 24. Kf2 {[%emt 0:00:41]} Rfe8 {[%emt 0:04:59]} 25. Rhe1 {[%emt 0:01:25]} Nb4 {[%emt 0:04:28]} 26. Bb1 {[%emt 0:02:32]} d5 {[%emt 0:01:40]} 27. Rxe8+ {[%emt 0:06:08]} Bxe8 {[%emt 0:00:02]} 28. c5 {[%emt 0:01:29]} Ba4 {[%emt 0:02:25]} 29. g4 {[%emt 0:00:44]} Na6 {[%emt 0:00:56]} 30. Rc1 {[%emt 0:03:48]} Bb2 {[%emt 0:02:43]} 31. Rg1 {[%emt 0:04:00]} Ba3 {[%emt 0:01:27]} 32. g5 {[%emt 0:03:21]} h5 {[%emt 0:01:22]} 33. Re1 {[%emt 0:05:06]} Nxc5 {[%emt 0:00:35]} 34. Nbd4 {[%emt 0:00:40]} Re8 {[%emt 0:01:34]} 35. Rxe8+ {[%emt 0:04:15]} Bxe8 {[%emt 0:00:01]} 36. f6 {[%emt 0:00:17]} Bb2 {[%emt 0:01:59]} 37. Nf5 {[%emt 0:00:30]} Ne4+ {[%emt 0:01:20]} 38. Bxe4 {[%emt 0:02:19]} dxe4 {[%emt 0:00:02]} 39. Nd2 {[%emt 0:00:05]} Bc6 {[%emt 0:01:20]} 40. Ne7+ {[%emt 0:00:36]} Kh7 {[%emt 0:00:26]} 41. Nxc6 {[%emt 0:32:14]} bxc6 {[%emt 0:08:54]} 42. Nxe4 {[%emt 0:00:00]} h4 {[%emt 0:11:56]} 43. Kf3 {[%emt 0:00:00]} Kg6 {[%emt 0:00:22]} 44. Kg4 {[%emt 0:00:00]} h3 {[%emt 0:02:01]} 45. Nf2 {[%emt 0:00:00]} Be5 {[%emt 0:02:41]} 46. Nxh3 {[%emt 0:00:00]} Bxh2 {[%emt 0:00:05]} 47. Nf2 {[%emt 0:00:00]} c5 {[%emt 0:00:09]} 48. Ne4 {[%emt 0:01:00]} c4 {[%emt 0:00:25]} 49. Kf3 {[%emt 0:00:33]} Kf5 {[%emt 0:02:36]} 50. Ke3 {[%emt 0:00:19]} Be5 {[%emt 0:02:07]} 51. a4 {[%emt 0:00:52]} c3 {[%emt 0:01:03]} 52. g6 {[%emt 0:01:24]} Kxg6 {[%emt 0:02:03]} 53. Kd3 {[%emt 0:02:22]} Bxf6 {[%emt 0:00:27]} 54. Nd6 {[%emt 0:00:56]} Be5 {[%emt 0:01:07]} 55. Nb5 {[%emt 0:01:14]} a5 {[%emt 0:00:55]} 56. Na3 {[%emt 0:00:12]} Bd6 {[%emt 0:00:35]} 57. Nc2 {[%emt 0:00:46]} Be5 {[%emt 0:00:21]} 58. Na3 {[%emt 0:00:24]} Kf5 {[%emt 0:01:07]} 59. Nc4 {[%emt 0:00:08]} Ke6 {[%emt 0:00:41]} 60. Nxa5 {[%emt 0:00:21]} Kd5 {[%emt 0:00:27]} 61. Nc4 {[%emt 0:00:16]} Bd4 {[%emt 0:00:22]} 62. Na3 {[%emt 0:00:58]} Bg7 {[%emt 0:00:39]} 63. Nb5 {[%emt 0:01:08]} f5 {[%emt 0:00:13]} 64. Nxc3+ {[%emt 0:00:19]} Bxc3 {[%emt 0:00:13]} 65. Kxc3 {[%emt 0:00:06]} Ke5 {[%emt 0:01:39]} 1/2-1/2

[Event "ISR-ch Open 2018"]
[Site "Ma'alot-Tarshih"]
[Date "2018.12.14"]
[Round "3"]
[White "Kupervaser, Erez"]
[Black "Drori, Saar"]
[Result "1/2-1/2"]
[ECO "B51"]
[WhiteElo "2168"]
[BlackElo "2419"]
[Annotator "RC"]
[PlyCount "57"]
[EventDate "2018.12.11"]
[EventType "swiss"]
[EventCountry "ISR"]
[SourceTitle "playchess.com"]
[Source "ChessBase"]
[SourceQuality "1"]
[TimeControl "40/5400+30:1800+30"]

1. e4 {[%emt 0:00:00]} c5 {[%emt 0:00:00]} 2. Nf3 {[%emt 0:00:00]} d6 {[%emt 0:00:00]} 3. Bb5+ {[%emt 0:00:11]} Nd7 {[%emt 0:00:00]} 4. d4 {[%emt 0:00:13]} cxd4 {[%emt 0:00:14]} 5. Qxd4 {[%emt 0:00:15]} a6 {[%emt 0:00:08]} 6. Bxd7+ {[%emt 0:00:08]} Bxd7 {[%emt 0:00:05]} 7. c4 {[%emt 0:00:14]} e5 {[%emt 0:10:02]} 8. Qd3 {[%emt 0:00:12]} h6 {[%emt 0:02:43]} 9. Nc3 {[%emt 0:00:56]} Nf6 {[%emt 0:00:12]} 10. O-O {[%emt 0:00:08]} Be7 {[%emt 0:02:41]} 11. a4 {[%emt 0:00:19]} O-O {[%emt 0:05:09]} 12. Rd1 {[%emt 0:00:28]} Be6 {[%emt 0:08:40]} 13. Be3 {[%emt 0:08:01]} Rc8 {[%emt 0:16:39]} 14. b3 {[%emt 0:00:38]} Qa5 {[%emt 0:00:44]} 15. Nd2 {[%emt 0:10:54]} Rfd8 {[%emt 0:10:58]} 16. Nf1 {[%emt 0:00:57]} Nh5 {[%emt 0:06:09]} 17. g3 {[%emt 0:07:11]} Rf8 {[%emt 0:01:12]} 18. f3 {[%emt 0:05:02]} Kh8 {[%emt 0:04:43]} 19. Nd5 {[%emt 0:00:55]} Bxd5 {[%emt 0:00:09]} 20. Qxd5 {[%emt 0:00:07]} Qc7 {[%emt 0:02:33]} 21. Qd3 {[%emt 0:03:15]} Qd7 {[%emt 0:02:11]} 22. c5 {[%emt 0:01:25]} Rc6 {[%emt 0:02:43]} 23. b4 {[%emt 0:01:22]} Rd8 {[%emt 0:02:01]} 24. b5 {[%emt 0:04:57]} axb5 {[%emt 0:00:14]} 25. axb5 {[%emt 0:00:02]} Rcc8 {[%emt 0:00:22]} 26. Ra7 {[%emt 0:01:25]} Qe6 {[%emt 0:09:05]} 27. c6 {[%emt 0:01:01]} bxc6 {[%emt 0:00:36]} 28. bxc6 {[%emt 0:00:03]} Nf6 {[%emt 0:01:14]} 29. Qb5 {[%emt 0:05:16]} 1/2-1/2

[Event "ISR-ch Open 2018"]
[Site "Ma'alot-Tarshih"]
[Date "2018.12.15"]
[Round "4"]
[White "Mordechai, Hanan"]
[Black "Kupervaser, Erez"]
[Result "1/2-1/2"]
[ECO "B35"]
[WhiteElo "2310"]
[BlackElo "2168"]
[Annotator "NA"]
[PlyCount "56"]
[EventDate "2018.12.11"]
[EventType "swiss"]
[EventCountry "ISR"]
[SourceTitle "playchess.com"]
[Source "ChessBase"]
[SourceQuality "1"]
[TimeControl "40/5400+30:1800+30"]

1. e4 {[%emt 0:00:00]} c5 {[%emt 0:00:00]} 2. Nf3 {[%emt 0:00:00]} g6 {[%emt 0:00:00]} 3. d4 {[%emt 0:00:00]} cxd4 {[%emt 0:00:00]} 4. Nxd4 {[%emt 0:00:00]} Bg7 {[%emt 0:00:00]} 5. Nc3 {[%emt 0:00:00]} Nc6 {[%emt 0:00:00]} 6. Be3 {[%emt 0:00:00]} Nf6 {[%emt 0:00:02]} 7. Bc4 {[%emt 0:00:03]} Qa5 {[%emt 0:00:12]} 8. O-O {[%emt 0:00:18]} O-O {[%emt 0:00:05]} 9. Bb3 {[%emt 0:00:42]} d6 {[%emt 0:00:11]} 10. h3 {[%emt 0:00:08]} Bd7 {[%emt 0:00:05]} 11. Re1 {[%emt 0:00:54]} Rfc8 {[%emt 0:00:06]} 12. Nd5 {[%emt 0:03:19]} Qd8 {[%emt 0:04:37]} 13. Nxf6+ {[%emt 0:31:47]} Bxf6 {[%emt 0:00:17]} 14. c3 {[%emt 0:00:05]} Na5 {[%emt 0:02:55]} 15. f4 {[%emt 0:03:17]} Nc4 {[%emt 0:03:44]} 16. Bf2 {[%emt 0:02:53]} e5 {[%emt 0:10:17]} 17. Nf3 {[%emt 0:00:28]} Qe7 {[%emt 0:06:21]} 18. Qe2 {[%emt 0:10:14]} b5 {[%emt 0:17:26]} 19. Bg3 {[%emt 0:08:24]} Be6 {[%emt 0:07:55]} 20. Rad1 {[%emt 0:06:23]} a5 {[%emt 0:00:52]} 21. a3 {[%emt 0:01:04]} Rab8 {[%emt 0:05:50]} 22. Bxc4 {[%emt 0:08:31]} Bxc4 {[%emt 0:00:21]} 23. Qd2 {[%emt 0:00:54]} Bb3 {[%emt 0:02:53]} 24. Rc1 {[%emt 0:00:03]} Rc6 {[%emt 0:01:51]} 25. f5 {[%emt 0:00:31]} Rbc8 {[%emt 0:01:23]} 26. Bf2 {[%emt 0:01:30]} Qc7 {[%emt 0:03:53]} 27. Qh6 {[%emt 0:03:31]} Bg7 {[%emt 0:01:37]} 28. Qh4 {[%emt 0:00:33]} Qd8 {[%emt 0:00:16]} 1/2-1/2

[Event "ISR-ch Open 2018"]
[Site "Ma'alot-Tarshih"]
[Date "2018.12.15"]
[Round "4"]
[White "Lukin, Elisha"]
[Black "Zhizmer, Yuri"]
[Result "1-0"]
[ECO "B07"]
[WhiteElo "2280"]
[BlackElo "2326"]
[Annotator "NA"]
[PlyCount "69"]
[EventDate "2018.12.11"]
[EventType "swiss"]
[EventCountry "ISR"]
[SourceTitle "playchess.com"]
[Source "ChessBase"]
[SourceQuality "1"]
[TimeControl "40/5400+30:1800+30"]

1. d4 {[%emt 0:00:13]} d6 {[%emt 0:00:00]} 2. e4 {[%emt 0:00:19]} Nf6 {[%emt 0:00:00]} 3. Nc3 {[%emt 0:00:06]} e5 {[%emt 0:00:00]} 4. Nge2 {[%emt 0:00:06]} Be7 {[%emt 0:00:45]} 5. h3 {[%emt 0:00:15]} O-O {[%emt 0:02:03]} 6. Be3 {[%emt 0:00:22]} a6 {[%emt 0:04:09]} 7. g4 {[%emt 0:00:45]} b5 {[%emt 0:01:02]} 8. Bg2 {[%emt 0:07:52]} Bb7 {[%emt 0:01:33]} 9. O-O {[%emt 0:05:56]} b4 {[%emt 0:01:54]} 10. Nd5 {[%emt 0:04:29]} Nxd5 {[%emt 0:02:53]} 11. exd5 {[%emt 0:00:25]} Nd7 {[%emt 0:00:17]} 12. dxe5 {[%emt 0:04:56]} Nxe5 {[%emt 0:00:20]} 13. f4 {[%emt 0:05:55]} Nc4 {[%emt 0:00:47]} 14. Bd4 {[%emt 0:00:45]} Re8 {[%emt 0:02:54]} 15. Qd3 {[%emt 0:16:07]} a5 {[%emt 0:04:47]} 16. Qxc4 {[%emt 0:07:01]} Ba6 {[%emt 0:00:21]} 17. Qc6 {[%emt 0:06:42]} Bxe2 {[%emt 0:00:10]} 18. g5 {[%emt 0:07:58]} Bxf1 {[%emt 0:06:12]} 19. Rxf1 {[%emt 0:00:02]} Bf8 {[%emt 0:00:39]} 20. h4 {[%emt 0:07:23]} Qc8 {[%emt 0:03:44]} 21. f5 {[%emt 0:00:57]} Qa6 {[%emt 0:01:54]} 22. c4 {[%emt 0:00:07]} Re2 {[%emt 0:10:31]} 23. g6 {[%emt 0:05:54]} Qxc6 {[%emt 0:07:29]} 24. dxc6 {[%emt 0:00:03]} fxg6 {[%emt 0:04:38]} 25. Bd5+ {[%emt 0:00:48]} Kh8 {[%emt 0:00:05]} 26. fxg6 {[%emt 0:00:50]} Rae8 {[%emt 0:04:44]} 27. h5 {[%emt 0:05:15]} Re1 {[%emt 0:02:19]} 28. Rxe1 {[%emt 0:02:32]} Rxe1+ {[%emt 0:00:06]} 29. Kf2 {[%emt 0:00:03]} Rd1 {[%emt 0:01:02]} 30. Bb6 {[%emt 0:00:43]} Rd2+ {[%emt 0:15:08]} 31. Ke3 {[%emt 0:00:43]} Rxb2 {[%emt 0:00:38]} 32. Bxc7 {[%emt 0:00:09]} b3 {[%emt 0:00:39]} 33. axb3 {[%emt 0:04:11]} Rxb3+ {[%emt 0:00:07]} 34. Kd2 {[%emt 0:00:16]} hxg6 {[%emt 0:04:55]} 35. Bb6 {[%emt 0:00:27]} 1-0

[Event "ISR-ch Open 2018"]
[Site "Ma'alot-Tarshih"]
[Date "2018.12.15"]
[Round "4"]
[White "Chernomordik, Pavel"]
[Black "Aharon, Ofir"]
[Result "0-1"]
[ECO "B28"]
[WhiteElo "2277"]
[BlackElo "2320"]
[Annotator "NA"]
[PlyCount "78"]
[EventDate "2018.12.11"]
[EventType "swiss"]
[EventCountry "ISR"]
[SourceTitle "playchess.com"]
[Source "ChessBase"]
[SourceQuality "1"]
[TimeControl "40/5400+30:1800+30"]

1. e4 {[%emt 0:00:00]} c5 {[%emt 0:00:00]} 2. Nf3 {[%emt 0:00:00]} a6 {[%emt 0:01:06]} 3. g3 {[%emt 0:01:12]} b5 {[%emt 0:00:24]} 4. Bg2 {[%emt 0:00:30]} Bb7 {[%emt 0:00:06]} 5. Qe2 {[%emt 0:00:02]} g6 {[%emt 0:03:57]} 6. a4 {[%emt 0:02:43]} b4 {[%emt 0:02:18]} 7. O-O {[%emt 0:02:23]} Bg7 {[%emt 0:00:03]} 8. Qe3 {[%emt 0:04:33]} d6 {[%emt 0:03:12]} 9. c3 {[%emt 0:04:40]} Nh6 {[%emt 0:26:37]} 10. cxb4 {[%emt 0:04:42]} cxb4 {[%emt 0:00:07]} 11. d4 {[%emt 0:00:06]} O-O {[%emt 0:00:35]} 12. h3 {[%emt 0:04:13]} d5 {[%emt 0:07:39]} 13. e5 {[%emt 0:01:30]} Nf5 {[%emt 0:00:18]} 14. Qd2 {[%emt 0:00:40]} Nc6 {[%emt 0:06:07]} 15. g4 {[%emt 0:06:49]} Bh6 {[%emt 0:01:35]} 16. Qd3 {[%emt 0:00:36]} Bxc1 {[%emt 0:00:14]} 17. Rxc1 {[%emt 0:01:57]} Ng7 {[%emt 0:00:07]} 18. Nbd2 {[%emt 0:02:11]} Na5 {[%emt 0:05:20]} 19. b3 {[%emt 0:04:29]} Qb6 {[%emt 0:04:30]} 20. Qe3 {[%emt 0:05:34]} Rac8 {[%emt 0:01:25]} 21. Ne1 {[%emt 0:04:40]} Ne6 {[%emt 0:01:15]} 22. Ndf3 {[%emt 0:01:37]} Rc6 {[%emt 0:08:25]} 23. Rxc6 {[%emt 0:07:15]} Nxc6 {[%emt 0:00:18]} 24. Rd1 {[%emt 0:00:28]} Rc8 {[%emt 0:01:44]} 25. h4 {[%emt 0:12:28]} Na5 {[%emt 0:01:14]} 26. Rd3 {[%emt 0:01:42]} Qc7 {[%emt 0:01:36]} 27. Qd2 {[%emt 0:05:39]} Nc6 {[%emt 0:11:00]} 28. Qh6 {[%emt 0:04:11]} Ncd8 {[%emt 0:04:26]} 29. Qd2 {[%emt 0:06:51]} a5 {[%emt 0:00:27]} 30. Kh2 {[%emt 0:05:22]} Qc1 {[%emt 0:00:27]} 31. Qe3 {[%emt 0:03:23]} Nf4 {[%emt 0:02:43]} 32. Rd2 {[%emt 0:00:36]} Nde6 {[%emt 0:00:12]} 33. Ng5 {[%emt 0:01:13]} Rc3 {[%emt 0:02:02]} 34. Nd3 {[%emt 0:00:22]} Nxd3 {[%emt 0:03:27]} 35. Rxd3 {[%emt 0:00:15]} Qxe3 {[%emt 0:00:09]} 36. Rxe3 {[%emt 0:00:44]} Nxd4 {[%emt 0:00:04]} 37. Re1 {[%emt 0:00:59]} h6 {[%emt 0:02:15]} 38. Rd1 {[%emt 0:01:14]} Nxb3 {[%emt 0:00:14]} 39. Nh3 {[%emt 0:00:52]} e6 {[%emt 0:00:14]} 0-1

[Event "ISR-ch Open 2018"]
[Site "Ma'alot-Tarshih"]
[Date "2018.12.15"]
[Round "4"]
[White "Emanuel, Yahav"]
[Black "Bronstein, Or"]
[Result "0-1"]
[ECO "B92"]
[WhiteElo "2221"]
[BlackElo "2359"]
[Annotator "NA"]
[PlyCount "82"]
[EventDate "2018.12.11"]
[EventType "swiss"]
[EventCountry "ISR"]
[SourceTitle "playchess.com"]
[Source "ChessBase"]
[SourceQuality "1"]
[TimeControl "40/5400+30:1800+30"]

1. e4 {[%emt 0:00:00]} c5 {[%emt 0:00:00]} 2. Nf3 {[%emt 0:00:00]} d6 {[%emt 0:00:02]} 3. d4 {[%emt 0:00:00]} cxd4 {[%emt 0:00:04]} 4. Nxd4 {[%emt 0:00:00]} Nf6 {[%emt 0:00:09]} 5. Nc3 {[%emt 0:00:00]} a6 {[%emt 0:00:06]} 6. Be2 {[%emt 0:00:08]} e5 {[%emt 0:01:17]} 7. Nb3 {[%emt 0:00:03]} Be7 {[%emt 0:00:09]} 8. O-O {[%emt 0:00:10]} O-O {[%emt 0:00:02]} 9. Re1 {[%emt 0:00:45]} Be6 {[%emt 0:02:40]} 10. Bf3 {[%emt 0:00:23]} Nbd7 {[%emt 0:03:09]} 11. a4 {[%emt 0:02:19]} Rc8 {[%emt 0:03:41]} 12. Nd2 {[%emt 0:02:49]} Qc7 {[%emt 0:24:30]} 13. Nf1 {[%emt 0:04:31]} Bd8 {[%emt 0:00:29]} 14. Ne3 {[%emt 0:07:14]} Qc5 {[%emt 0:00:36]} 15. Ncd5 {[%emt 0:06:28]} Bxd5 {[%emt 0:01:03]} 16. exd5 {[%emt 0:00:52]} Bb6 {[%emt 0:00:32]} 17. Bd2 {[%emt 0:11:01]} a5 {[%emt 0:08:50]} 18. Rb1 {[%emt 0:05:55]} g6 {[%emt 0:03:27]} 19. b4 {[%emt 0:12:35]} Qc7 {[%emt 0:08:22]} 20. bxa5 {[%emt 0:13:58]} Bxa5 {[%emt 0:00:20]} 21. Bxa5 {[%emt 0:05:10]} Qxa5 {[%emt 0:00:01]} 22. Rxb7 {[%emt 0:00:25]} Nb6 {[%emt 0:11:20]} 23. Qe2 {[%emt 0:02:46]} e4 {[%emt 0:12:19]} 24. Bg4 {[%emt 0:01:37]} Rc5 {[%emt 0:00:38]} 25. c4 {[%emt 0:11:23]} Qa6 {[%emt 0:01:05]} 26. Re7 {[%emt 0:00:15]} Nxa4 {[%emt 0:03:02]} 27. Ra1 {[%emt 0:03:41]} Ra8 {[%emt 0:00:20]} 28. Qc2 {[%emt 0:04:19]} Kf8 {[%emt 0:01:00]} 29. Rxe4 {[%emt 0:00:25]} Nxe4 {[%emt 0:00:09]} 30. Qxe4 {[%emt 0:00:04]} Qb6 {[%emt 0:08:28]} 31. Bd7 {[%emt 0:02:18]} Rca5 {[%emt 0:00:08]} 32. Re1 {[%emt 0:01:14]} Nc3 {[%emt 0:02:42]} 33. Qd3 {[%emt 0:01:22]} Qb2 {[%emt 0:00:26]} 34. g3 {[%emt 0:01:35]} Ra1 {[%emt 0:00:35]} 35. Nc2 {[%emt 0:00:51]} Rxe1+ {[%emt 0:00:31]} 36. Nxe1 {[%emt 0:00:01]} Qc1 {[%emt 0:00:48]} 37. Kf1 {[%emt 0:00:36]} Ra1 {[%emt 0:01:12]} 38. Qe3 {[%emt 0:00:04]} Qxe3 {[%emt 0:01:11]} 39. fxe3 {[%emt 0:00:01]} Ke7 {[%emt 0:00:08]} 40. Bc6 {[%emt 0:01:43]} f5 {[%emt 0:02:13]} 41. Kf2 {[%emt 0:04:13]} Ra2+ {[%emt 0:00:48]} 0-1

[Event "ISR-ch Open 2018"]
[Site "Ma'alot-Tarshih"]
[Date "2018.12.16"]
[Round "5"]
[White "Greenfeld, Alon"]
[Black "Zanan, Evgeny"]
[Result "1-0"]
[ECO "E16"]
[WhiteElo "2504"]
[BlackElo "2521"]
[Annotator "ChessBase"]
[PlyCount "67"]
[EventDate "2018.12.11"]
[EventType "swiss"]
[EventCountry "ISR"]
[SourceTitle "playchess.com"]
[Source "ChessBase"]
[SourceQuality "1"]
[TimeControl "40/5400+30:1800+30"]

1. d4 {[%emt 0:04:15]} Nf6 {[%emt 0:00:27]} 2. c4 {[%emt 0:00:50]} e6 {[%emt 0:00:12]} 3. g3 {[%emt 0:01:06]} d5 {[%emt 0:00:09]} 4. Bg2 {[%emt 0:00:52]} Bb4+ {[%emt 0:00:27]} 5. Nd2 {[%emt 0:02:44]} O-O {[%emt 0:00:43]} 6. Ngf3 {[%emt 0:01:06]} b6 {[%emt 0:00:29]} 7. O-O {[%emt 0:06:54]} Bb7 {[%emt 0:00:21]} 8. Ne5 {[%emt 0:00:24]} Qc8 {[%emt 0:00:28]} 9. cxd5 {[%emt 0:13:22]} Bxd5 {[%emt 0:01:51]} 10. e4 {[%emt 0:05:29]} Bb7 {[%emt 0:00:23]} 11. Re1 {[%emt 0:13:49]} Rd8 {[%emt 0:16:09]} 12. a3 {[%emt 0:00:35]} Bxd2 {[%emt 0:11:32]} 13. Qxd2 {[%emt 0:17:56]} c5 {[%emt 0:00:51]} 14. b4 {[%emt 0:05:42]} Nc6 {[%emt 0:24:21]} 15. Nxc6 {[%emt 0:00:29]} Qxc6 {[%emt 0:00:04]} 16. bxc5 {[%emt 0:06:30]} bxc5 {[%emt 0:00:07]} 17. d5 {[%emt 0:00:37]} exd5 {[%emt 0:00:15]} 18. exd5 {[%emt 0:00:03]} Nxd5 {[%emt 0:08:46]} 19. Bb2 {[%emt 0:02:13]} Qb6 {[%emt 0:12:20]} 20. Bxg7 {[%emt 0:02:02]} Kxg7 {[%emt 0:02:44]} 21. Rab1 {[%emt 0:00:10]} Nb4 {[%emt 0:05:14]} 22. Qc3+ {[%emt 0:01:37]} Qf6 {[%emt 0:02:28]} 23. Qxf6+ {[%emt 0:00:42]} Kxf6 {[%emt 0:00:04]} 24. Bxb7 {[%emt 0:00:13]} Rab8 {[%emt 0:04:44]} 25. Be4 {[%emt 0:07:25]} Na2 {[%emt 0:00:04]} 26. Bxh7 {[%emt 0:01:10]} c4 {[%emt 0:01:29]} 27. Kf1 {[%emt 0:03:37]} Rb3 {[%emt 0:03:42]} 28. Bc2 {[%emt 0:00:57]} Rxa3 {[%emt 0:01:01]} 29. Ra1 {[%emt 0:00:54]} Rd2 {[%emt 0:01:06]} 30. Bb1 {[%emt 0:00:10]} a5 {[%emt 0:01:47]} 31. h4 {[%emt 0:00:20]} Rb2 {[%emt 0:00:35]} 32. Re4 {[%emt 0:00:48]} Rf3 {[%emt 0:00:34]} 33. Re2 {[%emt 0:00:31]} Rxe2 {[%emt 0:00:31]} 34. Kxe2 {[%emt 0:00:05]} 1-0

[Event "ISR-ch Open 2018"]
[Site "Ma'alot-Tarshih"]
[Date "2018.12.16"]
[Round "5"]
[White "Globus, Or"]
[Black "Taichman, Ori"]
[Result "1-0"]
[ECO "E97"]
[WhiteElo "2387"]
[BlackElo "2303"]
[Annotator "NA"]
[PlyCount "91"]
[EventDate "2018.12.11"]
[EventType "swiss"]
[EventCountry "ISR"]
[SourceTitle "playchess.com"]
[Source "ChessBase"]
[SourceQuality "1"]
[TimeControl "40/5400+30:1800+30"]

1. d4 {[%emt 0:00:00]} Nf6 {[%emt 0:00:13]} 2. c4 {[%emt 0:00:00]} g6 {[%emt 0:00:02]} 3. Nc3 {[%emt 0:00:00]} Bg7 {[%emt 0:00:03]} 4. e4 {[%emt 0:00:00]} d6 {[%emt 0:00:06]} 5. Nf3 {[%emt 0:00:09]} O-O {[%emt 0:00:02]} 6. Be2 {[%emt 0:00:05]} e5 {[%emt 0:00:04]} 7. O-O {[%emt 0:00:06]} Nc6 {[%emt 0:00:02]} 8. d5 {[%emt 0:00:04]} Ne7 {[%emt 0:00:03]} 9. Qc2 {[%emt 1:34:06]} Ne8 {[%emt 0:10:07]} 10. Rd1 {[%emt 0:00:00]} a5 {[%emt 0:07:58]} 11. Rb1 {[%emt 0:00:00]} h6 {[%emt 0:02:00]} 12. a3 {[%emt 0:00:00]} f5 {[%emt 0:00:54]} 13. b4 {[%emt 0:00:00]} axb4 {[%emt 0:01:23]} 14. axb4 {[%emt 0:00:00]} Nf6 {[%emt 0:03:35]} 15. Nd2 {[%emt 0:00:00]} fxe4 {[%emt 0:05:04]} 16. Ndxe4 {[%emt 0:00:00]} Nf5 {[%emt 0:00:16]} 17. Nxf6+ {[%emt 0:00:00]} Qxf6 {[%emt 0:03:27]} 18. Ne4 {[%emt 0:00:00]} Qh4 {[%emt 0:01:25]} 19. g3 {[%emt 0:00:00]} Qe7 {[%emt 0:01:05]} 20. Bb2 {[%emt 0:00:00]} Nd4 {[%emt 0:03:27]} 21. Bxd4 {[%emt 0:00:00]} exd4 {[%emt 0:00:03]} 22. Bd3 {[%emt 0:00:00]} Bf5 {[%emt 0:13:56]} 23. Re1 {[%emt 0:00:00]} Qf7 {[%emt 0:05:13]} 24. f4 {[%emt 0:00:00]} Ra3 {[%emt 0:01:10]} 25. Rb3 {[%emt 0:00:00]} Rfa8 {[%emt 0:09:50]} 26. Rxa3 {[%emt 0:00:00]} Rxa3 {[%emt 0:01:30]} 27. c5 {[%emt 0:00:00]} Bxe4 {[%emt 0:19:40]} 28. Bxe4 {[%emt 0:00:00]} Rc3 {[%emt 0:06:13]} 29. Qb1 {[%emt 0:00:00]} d3 {[%emt 0:01:12]} 30. Bxd3 {[%emt 0:00:00]} Bd4+ {[%emt 0:00:17]} 31. Kg2 {[%emt 0:00:00]} Kg7 {[%emt 0:03:15]} 32. Bxg6 {[%emt 0:00:00]} Qxd5+ {[%emt 0:00:01]} 33. Be4 {[%emt 0:00:00]} Qc4 {[%emt 0:00:19]} 34. Qd1 {[%emt 0:00:00]} Kf8 {[%emt 0:02:26]} 35. Qg4 {[%emt 0:00:00]} Qf7 {[%emt 0:00:28]} 36. Kh3 {[%emt 0:00:00]} h5 {[%emt 0:00:28]} 37. Qc8+ {[%emt 0:00:36]} Kg7 {[%emt 0:00:01]} 38. Bf5 {[%emt 0:01:36]} dxc5 {[%emt 0:00:49]} 39. Re8 {[%emt 0:03:06]} Re3 {[%emt 0:00:43]} 40. Rh8 {[%emt 0:01:58]} Qxf5+ {[%emt 0:00:38]} 41. Qxf5 {[%emt 0:30:11]} Kxh8 {[%emt 0:30:01]} 42. Qc8+ {[%emt 0:00:55]} Kg7 {[%emt 0:00:12]} 43. Qxc7+ {[%emt 0:00:35]} Kg6 {[%emt 0:00:33]} 44. bxc5 {[%emt 0:00:33]} Rc3 {[%emt 0:00:02]} 45. Qxb7 {[%emt 0:00:19]} Rxc5 {[%emt 0:01:43]} 46. Qe4+ {[%emt 0:00:18]} 1-0